[Event "December 19 Early 2023"]
[Site "https://www.chess.com"]
[Date "2023.12.19"]
[Round "7"]
[White "Nigalidze, Gaioz"]
[Black "Dinu, Dumitru-Daniel"]
[Result "0-1"]
[Board "79"]
[TimeControl "180+1"]
[WhiteFideId "13603078"]
[BlackFideId "1208403"]
[WhiteElo "2400"]
[BlackElo "2240"]
[WhiteTeam "GEO"]
[BlackTeam "ROU"]
[WhiteClock "0:00:01"]
[BlackClock "0:00:22"]

1. e4 {[%clk 0:03:00]}  c5 {[%clk 0:03:00]} 2. Nf3 {[%clk 0:03:00]}  d6 {[%clk 0:02:58]} 3. Bb5+ {[%clk 0:02:59]}  Bd7 {[%clk 0:02:47]} 4. Bxd7+ {[%clk 0:02:57]}  Qxd7 {[%clk 0:02:45]} 5. c4 {[%clk 0:02:58]}  Nc6 {[%clk 0:02:38]} 6. Nc3 {[%clk 0:02:56]}  g6 {[%clk 0:02:35]} 7. d4 {[%clk 0:02:54]}  cxd4 {[%clk 0:02:35]} 8. Nxd4 {[%clk 0:02:53]}  Bg7 {[%clk 0:02:35]} 9. Be3 {[%clk 0:02:53]}  Nf6 {[%clk 0:02:34]} 10. f3 {[%clk 0:02:53]}  O-O {[%clk 0:02:33]} 11. O-O {[%clk 0:02:53]}  Rac8 {[%clk 0:02:32]} 12. b3 {[%clk 0:02:44]}  a6 {[%clk 0:02:31]} 13. Rc1 {[%clk 0:02:43]}  Nxd4 {[%clk 0:02:05]} 14. Bxd4 {[%clk 0:02:41]}  b5 {[%clk 0:02:05]} 15. cxb5 {[%clk 0:02:29]}  axb5 {[%clk 0:02:04]} 16. Qd3 {[%clk 0:02:21]}  b4 {[%clk 0:01:58]} 17. Na4 {[%clk 0:02:20]}  Qb7 {[%clk 0:01:52]} 18. Nb6 {[%clk 0:02:05]}  Rc7 {[%clk 0:01:37]} 19. Rc4 {[%clk 0:01:50]}  Rxc4 {[%clk 0:01:27]} 20. Qxc4 {[%clk 0:01:48]}  Nd7 {[%clk 0:01:24]} 21. Nd5 {[%clk 0:01:42]}  Ne5 {[%clk 0:01:08]} 22. Bxe5 {[%clk 0:00:53]}  Bxe5 {[%clk 0:01:05]} 23. Rc1 {[%clk 0:00:18]}  Rb8 {[%clk 0:00:50]} 24. Qc7 {[%clk 0:00:11]}  e6 {[%clk 0:00:48]} 25. Ne7+ {[%clk 0:00:05]}  Kg7 {[%clk 0:00:45]} 26. Qxb7 {[%clk 0:00:05]}  Rxb7 {[%clk 0:00:45]} 27. Nc6 {[%clk 0:00:06]}  Bc3 {[%clk 0:00:45]} 28. Rc2 {[%clk 0:00:05]}  Rb6 {[%clk 0:00:38]} 29. Na5 {[%clk 0:00:04]}  d5 {[%clk 0:00:37]} 30. Kf1 {[%clk 0:00:02]}  Kf6 {[%clk 0:00:32]} 31. Ke2 {[%clk 0:00:02]}  Ke5 {[%clk 0:00:30]} 32. Kd3 {[%clk 0:00:02]}  Kd6 {[%clk 0:00:28]} 33. exd5 {[%clk 0:00:02]}  exd5 {[%clk 0:00:28]} 34. a4 {[%clk 0:00:03]}  Kc7 {[%clk 0:00:23]} 35. Re2 {[%clk 0:00:03]}  Re6 {[%clk 0:00:22]} 36. Rxe6 {[%clk 0:00:02]}  fxe6 {[%clk 0:00:22]} 37. f4 {[%clk 0:00:01]}  Kb6 {[%clk 0:00:22]} 0-1

[Event "December 19 Early 2023"]
[Site "https://www.chess.com"]
[Date "2023.12.19"]
[Round "7"]
[White "Kononenko, Dmitry"]
[Black "Buksa, Nataliya"]
[Result "0-1"]
[Board "80"]
[TimeControl "180+1"]
[WhiteFideId "14113538"]
[BlackFideId "14123622"]
[WhiteElo "2168"]
[BlackElo "2316"]
[WhiteTeam "UKR"]
[BlackTeam "UKR"]
[WhiteClock "0:00:13"]
[BlackClock "0:01:02"]

1. e4 {[%clk 0:03:00]}  c5 {[%clk 0:02:59]} 2. Nf3 {[%clk 0:03:01]}  Nc6 {[%clk 0:03:00]} 3. d4 {[%clk 0:03:01]}  cxd4 {[%clk 0:02:59]} 4. Nxd4 {[%clk 0:03:02]}  e5 {[%clk 0:03:00]} 5. Nb5 {[%clk 0:03:02]}  d6 {[%clk 0:03:00]} 6. N1c3 {[%clk 0:03:00]}  a6 {[%clk 0:02:55]} 7. Na3 {[%clk 0:03:01]}  Be7 {[%clk 0:02:56]} 8. Nd5 {[%clk 0:03:01]}  Nf6 {[%clk 0:02:54]} 9. Nxf6+ {[%clk 0:02:58]}  Bxf6 {[%clk 0:02:55]} 10. Nc4 {[%clk 0:02:50]}  O-O {[%clk 0:02:55]} 11. c3 {[%clk 0:02:43]}  Be7 {[%clk 0:02:51]} 12. Be3 {[%clk 0:02:40]}  b5 {[%clk 0:02:46]} 13. Nb6 {[%clk 0:02:39]}  Rb8 {[%clk 0:02:46]} 14. Nd5 {[%clk 0:02:40]}  Bg5 {[%clk 0:02:45]} 15. Bd3 {[%clk 0:02:35]}  Bxe3 {[%clk 0:02:43]} 16. Nxe3 {[%clk 0:02:33]}  Be6 {[%clk 0:02:43]} 17. O-O {[%clk 0:02:25]}  Ne7 {[%clk 0:02:43]} 18. a4 {[%clk 0:02:24]}  d5 {[%clk 0:02:39]} 19. axb5 {[%clk 0:02:17]}  axb5 {[%clk 0:02:32]} 20. exd5 {[%clk 0:02:08]}  Nxd5 {[%clk 0:02:31]} 21. Qh5 {[%clk 0:01:54]}  Nf6 {[%clk 0:02:31]} 22. Qe2 {[%clk 0:01:53]}  Qb6 {[%clk 0:02:26]} 23. Rfd1 {[%clk 0:01:45]}  Bb3 {[%clk 0:02:20]} 24. Bc2 {[%clk 0:01:41]}  Be6 {[%clk 0:02:12]} 25. h3 {[%clk 0:01:29]}  b4 {[%clk 0:02:10]} 26. c4 {[%clk 0:01:29]}  b3 {[%clk 0:02:08]} 27. Bf5 {[%clk 0:01:26]}  Bxf5 {[%clk 0:01:56]} 28. Nxf5 {[%clk 0:01:25]}  Qc5 {[%clk 0:01:57]} 29. Rac1 {[%clk 0:01:13]}  Rfd8 {[%clk 0:01:47]} 30. Re1 {[%clk 0:01:05]}  e4 {[%clk 0:01:46]} 31. Rc3 {[%clk 0:01:05]}  Qxf5 {[%clk 0:01:45]} 32. c5 {[%clk 0:01:05]}  Nd5 {[%clk 0:01:35]} 33. Rg3 {[%clk 0:00:55]}  Re8 {[%clk 0:01:35]} 34. c6 {[%clk 0:00:50]}  Rbc8 {[%clk 0:01:34]} 35. Rc1 {[%clk 0:00:48]}  Nf4 {[%clk 0:01:31]} 36. Qe3 {[%clk 0:00:43]}  Nd3 {[%clk 0:01:31]} 37. Rc4 {[%clk 0:00:36]}  h6 {[%clk 0:01:28]} 38. Rc3 {[%clk 0:00:30]}  Qe6 {[%clk 0:01:17]} 39. c7 {[%clk 0:00:28]}  Qd6 {[%clk 0:01:12]} 40. Rxb3 {[%clk 0:00:19]}  Rxc7 {[%clk 0:01:11]} 41. Rc3 {[%clk 0:00:20]}  Rxc3 {[%clk 0:01:11]} 42. bxc3 {[%clk 0:00:21]}  Qe5 {[%clk 0:01:10]} 43. Qxh6 {[%clk 0:00:19]}  Qxg3 {[%clk 0:01:04]} 44. Qd2 {[%clk 0:00:13]}  Qxf2+ {[%clk 0:01:02]} 0-1

[Event "December 19 Early 2023"]
[Site "https://www.chess.com"]
[Date "2023.12.19"]
[Round "7"]
[White "Kokoszczynski, Jan"]
[Black "Karas, Marek"]
[Result "1/2-1/2"]
[Board "82"]
[TimeControl "180+1"]
[WhiteFideId "1174460"]
[BlackFideId "14928558"]
[WhiteElo "2266"]
[BlackElo "2218"]
[WhiteTeam "POL"]
[BlackTeam "CZE"]
[WhiteClock "0:00:06"]
[BlackClock "0:00:05"]

1. e4 {[%clk 0:02:52]}  e6 {[%clk 0:02:51]} 2. d4 {[%clk 0:02:51]}  d5 {[%clk 0:02:51]} 3. Nd2 {[%clk 0:02:43]}  c5 {[%clk 0:02:50]} 4. exd5 {[%clk 0:02:40]}  Qxd5 {[%clk 0:02:49]} 5. Ngf3 {[%clk 0:02:41]}  cxd4 {[%clk 0:02:49]} 6. Bc4 {[%clk 0:02:41]}  Qd6 {[%clk 0:02:48]} 7. Qe2 {[%clk 0:02:41]}  Nf6 {[%clk 0:02:47]} 8. O-O {[%clk 0:02:40]}  Nc6 {[%clk 0:02:42]} 9. Rd1 {[%clk 0:02:32]}  a6 {[%clk 0:02:38]} 10. a4 {[%clk 0:02:10]}  Qc7 {[%clk 0:02:35]} 11. Nb3 {[%clk 0:02:07]}  Be7 {[%clk 0:02:28]} 12. Nbxd4 {[%clk 0:02:07]}  Nxd4 {[%clk 0:02:28]} 13. Rxd4 {[%clk 0:02:04]}  O-O {[%clk 0:02:22]} 14. Bf4 {[%clk 0:01:58]}  Qc5 {[%clk 0:02:16]} 15. Rad1 {[%clk 0:01:51]}  b6 {[%clk 0:02:01]} 16. Ne5 {[%clk 0:01:43]}  Bb7 {[%clk 0:01:55]} 17. b4 {[%clk 0:01:29]}  Qxb4 {[%clk 0:01:33]} 18. Bxe6 {[%clk 0:01:25]}  Qc3 {[%clk 0:01:19]} 19. Bb3 {[%clk 0:01:07]}  Bc5 {[%clk 0:01:10]} 20. R4d3 {[%clk 0:01:00]}  Qb4 {[%clk 0:01:05]} 21. Bg5 {[%clk 0:00:51]}  Qe4 {[%clk 0:00:57]} 22. Qxe4 {[%clk 0:00:46]}  Nxe4 {[%clk 0:00:55]} 23. Be3 {[%clk 0:00:41]}  Bxe3 {[%clk 0:00:49]} 24. Rxe3 {[%clk 0:00:42]}  Nc5 {[%clk 0:00:48]} 25. h4 {[%clk 0:00:25]}  g6 {[%clk 0:00:37]} 26. Nd7 {[%clk 0:00:20]}  Rfd8 {[%clk 0:00:33]} 27. Re7 {[%clk 0:00:11]}  Nxb3 {[%clk 0:00:27]} 28. cxb3 {[%clk 0:00:12]}  Bc6 {[%clk 0:00:20]} 29. Rd6 {[%clk 0:00:07]}  Bxd7 {[%clk 0:00:15]} 30. Rexd7 {[%clk 0:00:07]}  Rxd7 {[%clk 0:00:15]} 31. Rxd7 {[%clk 0:00:08]}  Rb8 {[%clk 0:00:08]} 32. Rd6 {[%clk 0:00:07]}  Kf8 {[%clk 0:00:08]} 33. g3 {[%clk 0:00:03]}  Ke7 {[%clk 0:00:08]} 34. Rc6 {[%clk 0:00:04]}  Kd7 {[%clk 0:00:08]} 35. Rf6 {[%clk 0:00:04]}  Ke7 {[%clk 0:00:09]} 36. Rc6 {[%clk 0:00:05]}  Kd7 {[%clk 0:00:09]} 37. Rc3 {[%clk 0:00:03]}  Re8 {[%clk 0:00:08]} 38. Kg2 {[%clk 0:00:03]}  Kd6 {[%clk 0:00:08]} 39. Kf3 {[%clk 0:00:03]}  Re1 {[%clk 0:00:07]} 40. Kf4 {[%clk 0:00:02]}  b5 {[%clk 0:00:07]} 41. axb5 {[%clk 0:00:01]}  axb5 {[%clk 0:00:08]} 42. Rd3+ {[%clk 0:00:01]}  Kc5 {[%clk 0:00:07]} 43. Kg5 {[%clk 0:00:01]}  Kb4 {[%clk 0:00:06]} 44. Rf3 {[%clk 0:00:01]}  f5 {[%clk 0:00:05]} 45. Kh6 {[%clk 0:00:01]}  Re7 {[%clk 0:00:05]} 46. h5 {[%clk 0:00:01]}  gxh5 {[%clk 0:00:06]} 47. Kxh5 {[%clk 0:00:02]}  Rc7 {[%clk 0:00:05]} 48. Kg5 {[%clk 0:00:02]}  Rc3 {[%clk 0:00:04]} 49. Rxc3 {[%clk 0:00:03]}  Kxc3 {[%clk 0:00:05]} 50. Kxf5 {[%clk 0:00:04]}  Kxb3 {[%clk 0:00:05]} 51. Ke5 {[%clk 0:00:04]}  Kc2 {[%clk 0:00:04]} 52. f4 {[%clk 0:00:05]}  b4 {[%clk 0:00:04]} 53. f5 {[%clk 0:00:06]}  b3 {[%clk 0:00:05]} 54. f6 {[%clk 0:00:07]}  b2 {[%clk 0:00:05]} 55. f7 {[%clk 0:00:08]}  b1=Q {[%clk 0:00:06]} 56. f8=Q {[%clk 0:00:09]}  Qe1+ {[%clk 0:00:04]} 57. Kd5 {[%clk 0:00:03]}  Qxg3 {[%clk 0:00:03]} 58. Qf5+ {[%clk 0:00:04]}  Qd3+ {[%clk 0:00:03]} 59. Qxd3+ {[%clk 0:00:04]}  Kxd3 {[%clk 0:00:03]} 60. Ke5 {[%clk 0:00:05]}  h5 {[%clk 0:00:03]} 61. Kf4 {[%clk 0:00:05]}  h4 {[%clk 0:00:04]} 62. Kg4 {[%clk 0:00:06]}  h3 {[%clk 0:00:05]} 63. Kxh3 {[%clk 0:00:06]} 1/2-1/2

[Event "December 19 Early 2023"]
[Site "https://www.chess.com"]
[Date "2023.12.19"]
[Round "7"]
[White "Thorfinnsson, Bragi"]
[Black "Mazurkiewicz, Michal"]
[Result "1-0"]
[Board "83"]
[TimeControl "180+1"]
[WhiteFideId "2300958"]
[BlackFideId "1124943"]
[WhiteElo "2325"]
[BlackElo "2103"]
[WhiteTeam "ISL"]
[BlackTeam "POL"]
[WhiteClock "0:00:09"]
[BlackClock "0:00:00"]

1. e4 {[%clk 0:03:00]}  d6 {[%clk 0:02:59]} 2. d4 {[%clk 0:03:00]}  Nf6 {[%clk 0:02:59]} 3. Nc3 {[%clk 0:02:59]}  c6 {[%clk 0:03:00]} 4. a4 {[%clk 0:02:58]}  e5 {[%clk 0:02:59]} 5. Nge2 {[%clk 0:02:56]}  Be7 {[%clk 0:02:59]} 6. Ng3 {[%clk 0:02:48]}  O-O {[%clk 0:02:55]} 7. Be2 {[%clk 0:02:48]}  Re8 {[%clk 0:02:54]} 8. O-O {[%clk 0:02:47]}  a5 {[%clk 0:02:55]} 9. b3 {[%clk 0:02:40]}  Na6 {[%clk 0:02:49]} 10. Bb2 {[%clk 0:02:40]}  Nb4 {[%clk 0:02:38]} 11. Rc1 {[%clk 0:02:39]}  Nd7 {[%clk 0:01:41]} 12. d5 {[%clk 0:01:57]}  Nc5 {[%clk 0:01:34]} 13. Bc4 {[%clk 0:01:47]}  Bd7 {[%clk 0:01:23]} 14. Nce2 {[%clk 0:01:31]}  Rb8 {[%clk 0:00:57]} 15. c3 {[%clk 0:01:27]}  Nba6 {[%clk 0:00:53]} 16. dxc6 {[%clk 0:01:20]}  bxc6 {[%clk 0:00:50]} 17. f4 {[%clk 0:01:17]}  Be6 {[%clk 0:00:47]} 18. Bxe6 {[%clk 0:01:13]}  Nxe6 {[%clk 0:00:47]} 19. Nf5 {[%clk 0:00:51]}  Nac5 {[%clk 0:00:41]} 20. b4 {[%clk 0:00:45]}  axb4 {[%clk 0:00:31]} 21. cxb4 {[%clk 0:00:45]}  Rxb4 {[%clk 0:00:31]} 22. Bc3 {[%clk 0:00:32]}  Rxe4 {[%clk 0:00:26]} 23. Nxe7+ {[%clk 0:00:26]}  Qxe7 {[%clk 0:00:26]} 24. f5 {[%clk 0:00:27]}  Nd4 {[%clk 0:00:09]} 25. Ng3 {[%clk 0:00:27]}  Re3 {[%clk 0:00:05]} 26. f6 {[%clk 0:00:26]}  gxf6 {[%clk 0:00:04]} 27. Bxd4 {[%clk 0:00:18]}  exd4 {[%clk 0:00:04]} 28. Nf5 {[%clk 0:00:19]}  Qe4 {[%clk 0:00:04]} 29. Nxd6 {[%clk 0:00:14]}  Qd3 {[%clk 0:00:01]} 30. Qg4+ {[%clk 0:00:12]}  Qg6 {[%clk 0:00:02]} 31. Qxg6+ {[%clk 0:00:09]}  hxg6 {[%clk 0:00:03]} 32. Nxe8 {[%clk 0:00:09]}  Rxe8 {[%clk 0:00:04]} 33. Rxc5 {[%clk 0:00:10]}  d3 {[%clk 0:00:03]} 34. Rxc6 {[%clk 0:00:08]}  d2 {[%clk 0:00:00]} 35. Rd6 {[%clk 0:00:09]} 1-0

[Event "December 19 Early 2023"]
[Site "https://www.chess.com"]
[Date "2023.12.19"]
[Round "7"]
[White "Ezat, Mohamed"]
[Black "Uritsky, Yonathan"]
[Result "1-0"]
[Board "84"]
[TimeControl "180+1"]
[WhiteFideId "10600906"]
[BlackFideId "2825651"]
[WhiteElo "2367"]
[BlackElo "2168"]
[WhiteTeam "EGY"]
[BlackTeam "ISR"]
[WhiteClock "0:00:04"]
[BlackClock "0:00:00"]

1. d4 {[%clk 0:01:51]}  Nf6 {[%clk 0:02:58]} 2. c4 {[%clk 0:01:50]}  c5 {[%clk 0:02:58]} 3. d5 {[%clk 0:01:49]}  b5 {[%clk 0:02:58]} 4. cxb5 {[%clk 0:01:48]}  a6 {[%clk 0:02:59]} 5. Nc3 {[%clk 0:01:48]}  g6 {[%clk 0:02:59]} 6. e4 {[%clk 0:01:49]}  d6 {[%clk 0:02:59]} 7. Nf3 {[%clk 0:01:48]}  Bg7 {[%clk 0:03:00]} 8. Be2 {[%clk 0:01:48]}  O-O {[%clk 0:02:57]} 9. O-O {[%clk 0:01:48]}  axb5 {[%clk 0:02:57]} 10. Bxb5 {[%clk 0:01:43]}  Ba6 {[%clk 0:02:57]} 11. Bxa6 {[%clk 0:01:42]}  Nxa6 {[%clk 0:02:58]} 12. Qe2 {[%clk 0:01:42]}  Nd7 {[%clk 0:02:55]} 13. h3 {[%clk 0:01:39]}  Qb6 {[%clk 0:02:53]} 14. Nd2 {[%clk 0:01:38]}  Rfb8 {[%clk 0:02:40]} 15. Nc4 {[%clk 0:01:37]}  Qb4 {[%clk 0:02:35]} 16. a3 {[%clk 0:01:32]}  Qb3 {[%clk 0:02:34]} 17. Na5 {[%clk 0:01:32]}  Qb6 {[%clk 0:02:23]} 18. Nc6 {[%clk 0:01:32]}  Re8 {[%clk 0:02:24]} 19. Be3 {[%clk 0:01:07]}  Ne5 {[%clk 0:02:14]} 20. Nxe5 {[%clk 0:00:56]}  Bxe5 {[%clk 0:02:15]} 21. Rfc1 {[%clk 0:00:55]}  Reb8 {[%clk 0:02:02]} 22. b4 {[%clk 0:00:51]}  Nxb4 {[%clk 0:01:36]} 23. axb4 {[%clk 0:00:45]}  Rxa1 {[%clk 0:01:35]} 24. Rxa1 {[%clk 0:00:46]}  Qxb4 {[%clk 0:01:11]} 25. Ra7 {[%clk 0:00:34]}  Qxc3 {[%clk 0:01:05]} 26. g3 {[%clk 0:00:32]}  Bxg3 {[%clk 0:00:48]} 27. Rxe7 {[%clk 0:00:27]}  Rb2 {[%clk 0:00:41]} 28. Bh6 {[%clk 0:00:17]}  Rb8 {[%clk 0:00:11]} 29. Kg2 {[%clk 0:00:17]}  Be5 {[%clk 0:00:11]} 30. Qg4 {[%clk 0:00:17]}  Bg7 {[%clk 0:00:09]} 31. Rxf7 {[%clk 0:00:14]}  Bxh6 {[%clk 0:00:07]} 32. Qe6 {[%clk 0:00:14]}  Kh8 {[%clk 0:00:07]} 33. Qxd6 {[%clk 0:00:12]}  Re8 {[%clk 0:00:06]} 34. Re7 {[%clk 0:00:11]}  Rf8 {[%clk 0:00:05]} 35. Qg3 {[%clk 0:00:06]}  Qd2 {[%clk 0:00:03]} 36. Qe5+ {[%clk 0:00:06]}  Kg8 {[%clk 0:00:02]} 37. Qe6+ {[%clk 0:00:05]}  Kh8 {[%clk 0:00:03]} 38. Rf7 {[%clk 0:00:06]}  Rxf7 {[%clk 0:00:02]} 39. Qxf7 {[%clk 0:00:05]}  Qd4 {[%clk 0:00:02]} 40. Qe6 {[%clk 0:00:04]}  Bg7 {[%clk 0:00:02]} 41. d6 {[%clk 0:00:05]}  Be5 {[%clk 0:00:01]} 42. d7 {[%clk 0:00:05]}  Qd6 {[%clk 0:00:00]} 43. Qxd6 {[%clk 0:00:04]} 1-0

[Event "December 19 Early 2023"]
[Site "https://www.chess.com"]
[Date "2023.12.19"]
[Round "7"]
[White "Lopusiewicz, Piotr"]
[Black "Kavyev, Ruslan"]
[Result "0-1"]
[Board "85"]
[TimeControl "180+1"]
[WhiteFideId "1116029"]
[BlackFideId "34110981"]
[WhiteElo "2286"]
[BlackElo "2336"]
[WhiteTeam "POL"]
[BlackTeam "RUS"]
[WhiteClock "0:00:05"]
[BlackClock "0:00:08"]

1. d4 {[%clk 0:03:00]}  Nf6 {[%clk 0:02:56]} 2. c4 {[%clk 0:03:01]}  g6 {[%clk 0:02:56]} 3. Nc3 {[%clk 0:03:00]}  Bg7 {[%clk 0:02:57]} 4. e4 {[%clk 0:03:00]}  d6 {[%clk 0:02:57]} 5. Nf3 {[%clk 0:03:01]}  O-O {[%clk 0:02:57]} 6. Be2 {[%clk 0:03:01]}  e5 {[%clk 0:02:58]} 7. O-O {[%clk 0:03:01]}  Nc6 {[%clk 0:02:58]} 8. d5 {[%clk 0:03:02]}  Ne7 {[%clk 0:02:58]} 9. b4 {[%clk 0:03:02]}  Nh5 {[%clk 0:02:57]} 10. Re1 {[%clk 0:03:02]}  f5 {[%clk 0:02:56]} 11. a4 {[%clk 0:03:01]}  Nf6 {[%clk 0:02:52]} 12. a5 {[%clk 0:02:58]}  fxe4 {[%clk 0:02:39]} 13. Ng5 {[%clk 0:02:58]}  Bf5 {[%clk 0:02:32]} 14. g4 {[%clk 0:02:49]}  Bd7 {[%clk 0:02:30]} 15. Ncxe4 {[%clk 0:02:43]}  Kh8 {[%clk 0:02:10]} 16. Ra3 {[%clk 0:02:42]}  Nxe4 {[%clk 0:02:08]} 17. Nxe4 {[%clk 0:02:41]}  Ng8 {[%clk 0:02:08]} 18. Bg5 {[%clk 0:02:37]}  Nf6 {[%clk 0:02:06]} 19. Rg3 {[%clk 0:01:58]}  Qe8 {[%clk 0:01:56]} 20. Bxf6 {[%clk 0:01:53]}  Bxf6 {[%clk 0:01:57]} 21. c5 {[%clk 0:01:44]}  Be7 {[%clk 0:01:55]} 22. Qc2 {[%clk 0:01:40]}  Rf4 {[%clk 0:01:54]} 23. c6 {[%clk 0:01:22]}  bxc6 {[%clk 0:01:50]} 24. dxc6 {[%clk 0:01:23]}  Bxc6 {[%clk 0:01:48]} 25. Bd3 {[%clk 0:01:16]}  Rb8 {[%clk 0:01:35]} 26. Rc1 {[%clk 0:01:14]}  Bxe4 {[%clk 0:01:35]} 27. Bxe4 {[%clk 0:01:14]}  Rxb4 {[%clk 0:01:35]} 28. Bd3 {[%clk 0:00:58]}  Bh4 {[%clk 0:01:31]} 29. Qxc7 {[%clk 0:00:48]}  Bxg3 {[%clk 0:01:25]} 30. hxg3 {[%clk 0:00:49]}  Rfd4 {[%clk 0:01:12]} 31. Bf1 {[%clk 0:00:41]}  Rb8 {[%clk 0:00:30]} 32. Qxa7 {[%clk 0:00:36]}  Rc8 {[%clk 0:00:23]} 33. Rb1 {[%clk 0:00:31]}  Ra8 {[%clk 0:00:17]} 34. Qc7 {[%clk 0:00:28]}  Rc8 {[%clk 0:00:16]} 35. Qa7 {[%clk 0:00:25]}  Ra8 {[%clk 0:00:15]} 36. Qc7 {[%clk 0:00:25]}  Qd8 {[%clk 0:00:13]} 37. Qf7 {[%clk 0:00:21]}  Qf8 {[%clk 0:00:13]} 38. Qd7 {[%clk 0:00:20]}  Rd2 {[%clk 0:00:13]} 39. f4 {[%clk 0:00:16]}  Rd8 {[%clk 0:00:09]} 40. Qc7 {[%clk 0:00:16]}  Rc8 {[%clk 0:00:07]} 41. Qd7 {[%clk 0:00:16]}  Qe8 {[%clk 0:00:05]} 42. Qa7 {[%clk 0:00:08]}  exf4 {[%clk 0:00:05]} 43. Rb7 {[%clk 0:00:06]}  Qe3+ {[%clk 0:00:05]} 44. Qxe3 {[%clk 0:00:07]}  fxe3 {[%clk 0:00:06]} 45. a6 {[%clk 0:00:07]}  e2 {[%clk 0:00:06]} 46. Bxe2 {[%clk 0:00:06]}  Rxe2 {[%clk 0:00:06]} 47. a7 {[%clk 0:00:07]}  Ree8 {[%clk 0:00:07]} 48. Kg2 {[%clk 0:00:06]}  d5 {[%clk 0:00:07]} 49. Kf3 {[%clk 0:00:06]}  d4 {[%clk 0:00:07]} 50. g5 {[%clk 0:00:06]}  d3 {[%clk 0:00:07]} 51. Kg4 {[%clk 0:00:06]}  d2 {[%clk 0:00:07]} 52. Kh4 {[%clk 0:00:07]}  d1=Q {[%clk 0:00:08]} 53. g4 {[%clk 0:00:07]}  Qh1+ {[%clk 0:00:07]} 54. Kg3 {[%clk 0:00:05]}  Re3+ {[%clk 0:00:08]} 0-1

[Event "December 19 Early 2023"]
[Site "https://www.chess.com"]
[Date "2023.12.19"]
[Round "7"]
[White "Vlassov, Nikolai"]
[Black "Nilsson, Joakim"]
[Result "1-0"]
[Board "86"]
[TimeControl "180+1"]
[WhiteFideId "4103360"]
[BlackFideId "1723383"]
[WhiteElo "2351"]
[BlackElo "2143"]
[WhiteTeam "FID"]
[BlackTeam "SWE"]
[WhiteClock "0:00:10"]
[BlackClock "0:00:16"]

1. g4 {[%clk 0:03:00]}  e5 {[%clk 0:02:56]} 2. Bg2 {[%clk 0:03:00]}  Nc6 {[%clk 0:02:56]} 3. c4 {[%clk 0:02:59]}  Bc5 {[%clk 0:02:50]} 4. e3 {[%clk 0:02:59]}  d6 {[%clk 0:02:49]} 5. Nc3 {[%clk 0:02:55]}  h5 {[%clk 0:02:43]} 6. gxh5 {[%clk 0:02:49]}  Nf6 {[%clk 0:02:42]} 7. Bf3 {[%clk 0:02:37]}  Bf5 {[%clk 0:02:38]} 8. a3 {[%clk 0:02:34]}  a5 {[%clk 0:02:37]} 9. Nge2 {[%clk 0:02:29]}  e4 {[%clk 0:02:35]} 10. Ng3 {[%clk 0:02:25]}  Be6 {[%clk 0:02:24]} 11. Ncxe4 {[%clk 0:02:19]}  Bxc4 {[%clk 0:02:19]} 12. Nxc5 {[%clk 0:02:13]}  dxc5 {[%clk 0:02:19]} 13. Bxc6+ {[%clk 0:02:02]}  bxc6 {[%clk 0:02:19]} 14. Qc2 {[%clk 0:02:00]}  Qd3 {[%clk 0:02:03]} 15. Qxd3 {[%clk 0:01:39]}  Bxd3 {[%clk 0:02:03]} 16. b3 {[%clk 0:01:35]}  Nxh5 {[%clk 0:02:00]} 17. Bb2 {[%clk 0:01:32]}  Nxg3 {[%clk 0:01:55]} 18. fxg3 {[%clk 0:01:32]}  Rb8 {[%clk 0:01:50]} 19. Bxg7 {[%clk 0:01:26]}  Rh7 {[%clk 0:01:50]} 20. Bc3 {[%clk 0:01:25]}  Rxb3 {[%clk 0:01:50]} 21. Bxa5 {[%clk 0:01:25]}  f5 {[%clk 0:01:47]} 22. Bc3 {[%clk 0:01:22]}  Kd7 {[%clk 0:01:40]} 23. h4 {[%clk 0:01:17]}  Rh5 {[%clk 0:01:18]} 24. a4 {[%clk 0:01:17]}  Kc8 {[%clk 0:01:18]} 25. a5 {[%clk 0:01:17]}  Kb7 {[%clk 0:01:18]} 26. Kf2 {[%clk 0:01:15]}  Ka6 {[%clk 0:01:16]} 27. Rhg1 {[%clk 0:01:03]}  c4 {[%clk 0:01:14]} 28. Kf3 {[%clk 0:01:00]}  Rb5 {[%clk 0:01:12]} 29. Kf4 {[%clk 0:00:56]}  Rd5 {[%clk 0:01:08]} 30. Ra2 {[%clk 0:00:51]}  Rd7 {[%clk 0:01:08]} 31. Rb2 {[%clk 0:00:48]}  Re7 {[%clk 0:01:01]} 32. Be5 {[%clk 0:00:42]}  Rd7 {[%clk 0:00:41]} 33. Rb8 {[%clk 0:00:38]}  Ka7 {[%clk 0:00:38]} 34. Rg8 {[%clk 0:00:27]}  Be2 {[%clk 0:00:37]} 35. Bd4+ {[%clk 0:00:18]}  Rxd4+ {[%clk 0:00:18]} 36. exd4 {[%clk 0:00:19]}  Bd3 {[%clk 0:00:19]} 37. Re1 {[%clk 0:00:16]}  Rh7 {[%clk 0:00:18]} 38. Re6 {[%clk 0:00:15]}  Rd7 {[%clk 0:00:17]} 39. Rxc6 {[%clk 0:00:14]}  Rxd4+ {[%clk 0:00:17]} 40. Ke3 {[%clk 0:00:12]}  Re4+ {[%clk 0:00:17]} 41. Kf3 {[%clk 0:00:12]}  Kb7 {[%clk 0:00:17]} 42. a6+ {[%clk 0:00:11]}  Kxc6 {[%clk 0:00:17]} 43. a7 {[%clk 0:00:11]}  Be2+ {[%clk 0:00:16]} 44. Kf2 {[%clk 0:00:11]}  Bd3 {[%clk 0:00:16]} 45. a8=Q+ {[%clk 0:00:11]}  Kc5 {[%clk 0:00:17]} 46. Qa5+ {[%clk 0:00:09]}  Kd6 {[%clk 0:00:17]} 47. Rg6+ {[%clk 0:00:09]}  Kd7 {[%clk 0:00:17]} 48. Rg7+ {[%clk 0:00:10]}  Ke8 {[%clk 0:00:17]} 49. Qxc7 {[%clk 0:00:09]}  Re2+ {[%clk 0:00:16]} 50. Kf3 {[%clk 0:00:10]}  Re6 {[%clk 0:00:16]} 51. Rg8# {[%clk 0:00:10]} 1-0

[Event "December 19 Early 2023"]
[Site "https://www.chess.com"]
[Date "2023.12.19"]
[Round "7"]
[White "Begunov, Konstantin"]
[Black "Ambartsumova, Karina"]
[Result "0-1"]
[Board "87"]
[TimeControl "180+1"]
[WhiteFideId "4118510"]
[BlackFideId "4166299"]
[WhiteElo "2082"]
[BlackElo "2240"]
[WhiteTeam "RUS"]
[BlackTeam "RUS"]
[WhiteClock "0:00:00"]
[BlackClock "0:00:24"]

1. d4 {[%clk 0:03:00]}  Nf6 {[%clk 0:02:59]} 2. c4 {[%clk 0:03:00]}  e6 {[%clk 0:02:59]} 3. Nf3 {[%clk 0:03:00]}  d5 {[%clk 0:03:00]} 4. cxd5 {[%clk 0:02:59]}  exd5 {[%clk 0:03:00]} 5. Nc3 {[%clk 0:02:59]}  Be7 {[%clk 0:02:59]} 6. Bg5 {[%clk 0:02:59]}  c6 {[%clk 0:02:59]} 7. Qc2 {[%clk 0:02:59]}  Nbd7 {[%clk 0:03:00]} 8. e3 {[%clk 0:02:59]}  h6 {[%clk 0:03:00]} 9. Bh4 {[%clk 0:02:59]}  Nh5 {[%clk 0:03:00]} 10. Bxe7 {[%clk 0:02:58]}  Qxe7 {[%clk 0:03:01]} 11. O-O-O {[%clk 0:02:58]}  Nb6 {[%clk 0:03:01]} 12. Bd3 {[%clk 0:02:56]}  Be6 {[%clk 0:02:52]} 13. Ne5 {[%clk 0:02:53]}  O-O-O {[%clk 0:02:51]} 14. a4 {[%clk 0:02:50]}  Qb4 {[%clk 0:02:41]} 15. f4 {[%clk 0:02:39]}  Rhf8 {[%clk 0:02:17]} 16. g4 {[%clk 0:02:10]}  Nf6 {[%clk 0:02:16]} 17. f5 {[%clk 0:02:06]}  Bd7 {[%clk 0:02:15]} 18. h4 {[%clk 0:02:00]}  Kb8 {[%clk 0:02:04]} 19. g5 {[%clk 0:02:00]}  Ne4 {[%clk 0:01:45]} 20. Bxe4 {[%clk 0:01:23]}  dxe4 {[%clk 0:01:46]} 21. Qxe4 {[%clk 0:01:12]}  hxg5 {[%clk 0:01:37]} 22. Nd3 {[%clk 0:00:59]}  Qc4 {[%clk 0:01:27]} 23. a5 {[%clk 0:00:44]}  Nd5 {[%clk 0:01:15]} 24. Qe5+ {[%clk 0:00:21]}  Ka8 {[%clk 0:01:13]} 25. Kd2 {[%clk 0:00:21]}  f6 {[%clk 0:00:59]} 26. Qg3 {[%clk 0:00:14]}  Bxf5 {[%clk 0:00:56]} 27. Nc5 {[%clk 0:00:09]}  Nxc3 {[%clk 0:00:53]} 28. bxc3 {[%clk 0:00:09]}  Qxc5 {[%clk 0:00:52]} 29. hxg5 {[%clk 0:00:09]}  Qd5 {[%clk 0:00:47]} 30. gxf6 {[%clk 0:00:08]}  gxf6 {[%clk 0:00:46]} 31. Rhf1 {[%clk 0:00:05]}  Qe4 {[%clk 0:00:46]} 32. Qf4 {[%clk 0:00:04]}  Qd3+ {[%clk 0:00:39]} 33. Ke1 {[%clk 0:00:04]}  Qxc3+ {[%clk 0:00:40]} 34. Kf2 {[%clk 0:00:03]}  Qc2+ {[%clk 0:00:36]} 35. Ke1 {[%clk 0:00:00]}  Rfe8 {[%clk 0:00:24]} 0-1